{"text_format":"3","workbook":"xlsx","n_sheets":2,"sheets":["Linha do tempo","Sobre"],"not_rendered":{"charts":1,"images":2,"defined_names":2},"read":"whole","date_system":"1900"}

{"sheet":"Linha do tempo","index":0,"n_rows":49,"n_cols":10,"rows_kept":49}
[]
[]
[]
[{"$nulls":9},"MODELOS DE CRONOGRAMA do Vertex42.com"]
[{"$nulls":9},"https://www.vertex42.com/ExcelTemplates/timeline.html"]
[]
[]
[{"$nulls":9},"Dicas para usar esse modelo"]
[{"$nulls":9},"•  Insira e exclua linhas inteiras quando editar as tabelas de dados"]
[{"$nulls":9},"• Evite deixar a coluna de rótulo em branco"]
[{"$nulls":9},"• Formate o eixo horizontal para definir limites máx/min"]
[{"$nulls":9},"• Insira uma posição vertical entre -100 e 50"]
[{"$nulls":9},"• Formate rótulos de dados individuais ou marcadores para destacar eventos específicos"]
[{"$nulls":9},"• Leia os comentários de célula na linha de cabeçalho da tabela para obter mais informações"]
[]
[{"$nulls":9},"Outras observações"]
[{"$nulls":9},"•  As linhas tracejadas de marcos são barras de Erro Y"]
[{"$nulls":9},"•  As linhas tracejadas de tarefas são barras de Erro Y"]
[{"$nulls":9},"•  As durações das tarefas são barras de Erro Y"]
{"$rows_empty":8}
[null,"Tarefas"]
[null,"Início","Fim","Duração","Rótulo","Vert. Cargo","Vert. Linha"]
[]
[null,"2018-03-28",{"$f":"B31+D31-1","v":"2018-04-11"},15,{"$f":"\"Tarefa 1 \"&CHAR(10)&TEXT(B31,\"d mmm\")&\" - \"&TEXT(C31,\"d mmm\")","v":"Tarefa 1 \n28 mar - 11 abr"},-25,{"$f":"F31","v":-25}]
[null,{"$f":"C31+1","v":"2018-04-12"},"2018-05-01",20,{"$f":"\"Tarefa 2 \"&CHAR(10)&TEXT(B32,\"d mmm\")&\" - \"&TEXT(C32,\"d mmm\")","v":"Tarefa 2 \n12 abr - 1 mai"},{"$f":"F31-15","v":-40},{"$f":"F32-F31","v":-15}]
[null,{"$f":"C32+1","v":"2018-05-02"},"2018-05-25",24,{"$f":"\"Tarefa 3 \"&CHAR(10)&TEXT(B33,\"d mmm\")&\" - \"&TEXT(C33,\"d mmm\")","v":"Tarefa 3 \n2 mai - 25 mai"},{"$f":"F32-15","v":-55},{"$f":"F33-F32","v":-15}]
[null,"2018-04-28","2018-07-12",76,"Rótulo da tarefa 4",-80,{"$f":"F34","v":-80}]
[null,"2018-06-15","2018-07-04",20,"Rótulo da tarefa 5",-30,{"$f":"F35","v":-30}]
[null,{"$f":"C35+1","v":"2018-07-05"},"2018-08-03",30,"Rótulo da tarefa 6",{"$f":"F35-15","v":-45},{"$f":"F36-F35","v":-15}]
[null,"2018-08-10","2018-09-10",32,"Rótulo da tarefa 7",-20,{"$f":"F37","v":-20}]
[null,{"$f":"C37+1","v":"2018-09-11"},"2018-09-15",5,"Rótulo da tarefa 8",-60,{"$f":"F38-F37","v":-40}]
[null,{"$f":"C38+1","v":"2018-09-16"},"2018-10-06",21,"Rótulo da tarefa 9",{"$f":"F38-15","v":-75},{"$f":"F39-F38","v":-15}]
[{"$nulls":4},"Insira novas linhas acima desta"]
[]
[null,"Marcos"]
[null,"Data",null,null,"Rótulo","Cargo"]
[]
[null,"2018-04-02",null,null,{"$f":"\"Início, \"&TEXT(B45,\"d mmm\")","v":"Início, 2 abr"},30]
[null,{"$f":"C33","v":"2018-05-25"},null,null,"Marco 1",25]
[null,{"$f":"C36","v":"2018-08-03"},null,null,"Marco 2",20]
[null,{"$f":"C39","v":"2018-10-06"},null,null,{"$f":"\"Entregar, \"&TEXT(B48,\"d mmm\")","v":"Entregar, 6 out"},15]
[{"$nulls":4},"Insira novas linhas acima desta"]

{"sheet":"Sobre","index":1,"n_rows":19,"n_cols":2,"rows_kept":19}
[]
[null,"CRONOGRAMA DO PROJETO do Vertex42.com"]
[null,"https://www.vertex42.com/ExcelTemplates/project-timeline.html"]
[]
[]
[null,"Sobre este modelo"]
[null,"Esse modelo usa um gráfico de dispersão com rótulos de dados e barras de erro para criar um cronograma do projeto para exibir os marcos e as tarefas com durações. Ao contrário de um gráfico de Gantt, que mostra cada tarefa em uma linha separada, você controla o posicionamento vertical das tarefas no cronograma. Você pode especificar o comprimento da linha tracejada vertical para ajudar a mostrar as dependências da tarefa."]
[]
[null,"Esse tipo de cronograma do projeto é principalmente útil para a visão geral de um projeto, em vez de exibir uma estrutura detalhada da divisão do trabalho."]
[]
[null,"Mais modelos"]
[null,"Visite o site do Vertex42.com para fazer o download de outros modelos de cronograma e gerenciamento de projetos."]
[null,"Mais modelos de cronograma"]
[null,"Mais modelos de Gerenciamento de projetos"]
[]
[null,"Sobre Vertex42"]
[null,"O Vertex42.com oferece modelos profissionais de planilhas para uso corporativo, doméstico e educacional, a maioria deles com download gratuito. O conjunto de modelos inclui vários calendários, planejadores e agendas, bem como planilhas de finanças pessoais para orçamento, redução de débito e amortização de empréstimo."]
[]
[null,"As empresas encontrarão faturas, folhas de ponto, controladores de estoque, demonstrativos financeiros e modelos de planejamento de projetos. Professores e alunos encontrarão recursos como cronogramas de aula, planilhas de notas e planilhas de participação. Organize sua vida familiar com planejadores de refeições, listas de verificação e registros de exercícios. Cada modelo é completamente pesquisado, refinado e aprimorado ao longo do tempo com o feedback de milhares de usuários."]